bitfinex/quotes_BTCUSD_20241002
["timestamp","ask_amount","ask_price","bid_price","bid_amount"]
[1727835098448,0.012,61661.0,61660.0,0.223143]
[1727835098655,0.02536576,61661.0,61660.0,0.223143]
[1727835098886,0.02036576,61661.0,61660.0,0.223143]
[1727835099301,0.01436576,61661.0,61660.0,0.225143]
[1727835099513,0.01436576,61661.0,61660.0,0.228143]
[1727835101024,0.01436576,61661.0,61660.0,0.134743]
[1727835101874,0.01436576,61661.0,61660.0,0.005]
[1727835102290,0.14410676,61661.0,61660.0,0.005]
[1727835102501,0.01436576,61661.0,61660.0,0.005]
[1727835102718,0.14410676,61661.0,61660.0,0.005]
[1727835103577,0.01436576,61661.0,61660.0,0.005]
[1727835103814,0.01336576,61661.0,61660.0,0.129743]
[1727835104021,0.01336576,61661.0,61660.0,0.130743]
[1727835104247,0.130558,61663.0,61660.0,0.001]
[1727835104477,0.01335569,61661.0,61658.0,0.129747]
[1727835104701,0.130558,61663.0,61658.0,0.129747]
[1727835104702,0.01335569,61660.0,61658.0,0.129747]
[1727835104920,0.00082,61663.0,61655.0,0.24417441]
[1727835105153,0.01335569,61659.0,61658.0,0.29940563]
[1727835105358,0.00082,61663.0,61658.0,0.42915363]
[1727835105568,0.001,61661.0,61660.0,0.129742]
[1727835106197,0.01435569,61661.0,61660.0,0.129742]
[1727835106408,0.001,61661.0,61660.0,0.129742]
[1727835106603,0.001,61661.0,61660.0,0.210842]
[1727835106604,0.01435569,61661.0,61660.0,0.210842]
[1727835106846,0.00082,61663.0,61662.0,0.129739]
[1727835107060,0.00082,61663.0,61662.0,0.13298215]
[1727835107292,0.01417569,61663.0,61662.0,0.13298215]
[1727835107500,0.00082,61663.0,61662.0,0.30264078]
[1727835107758,0.01417569,61663.0,61662.0,0.30264078]
[1727835107999,0.01417569,61663.0,61662.0,0.30464078]
[1727835108000,0.00082,61663.0,61662.0,0.30464078]
[1727835108240,0.01417569,61663.0,61662.0,0.30464078]
[1727835108453,0.00082,61663.0,61662.0,0.30264078]
[1727835108672,0.01417569,61663.0,61662.0,0.30464078]
[1727835108895,0.00082,61663.0,61662.0,0.30464078]
[1727835109119,0.01417569,61663.0,61662.0,0.30664078]
[1727835109786,0.01417569,61663.0,61662.0,0.004]
[1727835109990,0.01417569,61663.0,61662.0,0.002]
[1727835110204,0.00182,61663.0,61662.0,0.008]
[1727835110414,0.01517569,61663.0,61662.0,0.006]
[1727835110620,0.01617569,61663.0,61662.0,0.012]
[1727835110835,0.01417569,61663.0,61661.0,0.129741]
[1727835111048,0.01417569,61663.0,61662.0,0.004]
[1727835111255,0.01417569,61663.0,61662.0,0.007]
[1727835111719,0.01417569,61663.0,61662.0,0.003]
[1727835112192,0.01417569,61663.0,61662.0,0.132739]
[1727835112410,0.01417569,61663.0,61662.0,0.003]
[1727835113289,0.01417569,61663.0,61662.0,0.00164]
[1727835113707,0.01417569,61663.0,61662.0,0.00364]
[1727835113915,0.01417569,61663.0,61662.0,0.00164]
[1727835114118,0.01417569,61663.0,61662.0,0.00364]
[1727835114328,0.01417569,61663.0,61662.0,0.00664]
[1727835114947,0.14391269,61663.0,61662.0,0.00664]
[1727835115155,0.25527947,61663.0,61662.0,0.00664]
[1727835115759,0.2149425,61663.0,61662.0,0.00664]
[1727835115994,0.2149425,61663.0,61662.0,0.00364]
[1727835116409,0.2149425,61663.0,61662.0,0.00164]
[1727835116410,0.2169425,61663.0,61662.0,0.00164]
[1727835116585,0.2249425,61663.0,61662.0,0.00264]
[1727835116730,0.2149425,61663.0,61662.0,0.00164]
[1727835116926,0.2219425,61663.0,61662.0,0.00264]
[1727835117130,0.2299425,61663.0,61662.0,0.00364]
[1727835123158,0.02917569,61663.0,61662.0,0.00364]
[1727835123596,0.02917569,61663.0,61662.0,0.133379]
[1727835124502,0.02117569,61663.0,61662.0,0.132379]
[1727835125363,0.00782,61663.0,61662.0,0.132379]
[1727835125812,0.00782,61663.0,61662.0,0.133379]
[1727835125813,0.00082,61663.0,61662.0,0.133379]
[1727835126022,0.00082,61663.0,61662.0,0.134379]
[1727835126662,0.00082,61663.0,61662.0,0.13462191]
[1727835126885,0.00082,61663.0,61662.0,0.135379]
[1727835127132,0.00082,61663.0,61662.0,0.138379]
[1727835127344,0.00082,61663.0,61662.0,0.131379]
[1727835127564,0.00282,61663.0,61662.0,0.152379]
[1727835128672,0.00282,61663.0,61662.0,0.15562197]
[1727835128893,0.00082,61663.0,61662.0,0.13462197]
[1727835129103,0.00182,61663.0,61662.0,0.14162197]
[1727835129268,0.00282,61663.0,61662.0,0.146379]
[1727835129447,0.00182,61663.0,61662.0,0.139379]
[1727835129646,0.00182,61663.0,61662.0,0.140379]
[1727835129959,0.00282,61663.0,61662.0,0.149379]
[1727835131047,0.01627544,61663.0,61662.0,0.149379]
[1727835131254,0.00282,61663.0,61662.0,0.149379]
[1727835131490,0.01627544,61663.0,61662.0,0.149379]
[1727835131691,0.00282,61663.0,61662.0,0.149379]
[1727835135674,0.00282,61663.0,61662.0,0.01964]
[1727835135879,0.14601244,61663.0,61662.0,0.01964]
[1727835137372,0.21704225,61663.0,61662.0,0.01964]
[1727835138434,0.21504225,61663.0,61662.0,0.00164]
[1727835138627,0.21504225,61663.0,61662.0,0.00564]
[1727835138828,0.22304225,61663.0,61662.0,0.00664]
[1727835139052,0.21504225,61663.0,61662.0,0.00564]
[1727835139386,0.21504225,61663.0,61662.0,0.00264]
[1727835139387,0.33882451,61663.0,61662.0,0.00264]
[1727835139591,0.31814225,61663.0,61662.0,0.00264]
[1727835139782,0.22604225,61663.0,61662.0,0.00264]
[1727835140236,0.21504225,61663.0,61662.0,0.00164]
[1727835140443,0.14401244,61663.0,61662.0,0.00164]
[1727835140650,0.01427544,61663.0,61662.0,0.00164]
[1727835141517,0.02027544,61663.0,61662.0,0.132379]
[1727835141931,0.00682,61663.0,61662.0,0.132379]
[1727835142147,0.00882,61663.0,61662.0,0.132379]
[1727835142379,0.00482,61663.0,61662.0,0.131379]
[1727835142815,0.01082,61663.0,61662.0,0.132379]
[1727835143022,0.01082,61663.0,61662.0,0.131379]
[1727835143023,0.00082,61663.0,61662.0,0.131379]
[1727835143446,0.00182,61663.0,61662.0,0.142379]
[1727835143655,0.00182,61663.0,61662.0,0.138379]
[1727835144070,0.00282,61663.0,61662.0,0.146379]
[1727835145123,0.00182,61663.0,61662.0,0.139379]
[1727835145798,0.00282,61663.0,61662.0,0.148379]
[1727835146012,0.00182,61663.0,61662.0,0.140379]
[1727835146229,0.00282,61663.0,61662.0,0.148379]
[1727835146654,0.00282,61663.0,61662.0,0.31803763]
[1727835147936,0.00282,61663.0,61662.0,0.48273208]
[1727835148152,0.00282,61663.0,61662.0,0.76423208]
[1727835148359,0.00282,61663.0,61662.0,1.07097604]
[1727835148568,0.00282,61663.0,61662.0,1.09518683]
[1727835149201,0.00282,61663.0,61662.0,0.99834366]
[1727835149459,0.00182,61663.0,61662.0,0.75822336]
[1727835149671,0.00182,61663.0,61662.0,1.0618032]
[1727835149900,0.00282,61663.0,61662.0,1.06978437]
[1727835150131,0.00182,61663.0,61662.0,0.98824958]
[1727835150347,0.00182,61663.0,61662.0,1.06078184]
[1727835150550,0.00282,61663.0,61662.0,0.76622336]
[1727835150968,0.00282,61663.0,61662.0,0.83875562]
[1727835151391,0.00282,61663.0,61662.0,0.76622336]
[1727835151806,0.00282,61663.0,61662.0,0.77152435]
[1727835152231,0.00282,61663.0,61662.0,0.76953307]
[1727835153057,0.00282,61663.0,61662.0,0.77152435]
[1727835153475,0.00282,61663.0,61662.0,0.76953307]
[1727835153920,0.00282,61663.0,61662.0,0.76453307]
[1727835154128,0.00282,61663.0,61662.0,0.226579]
[1727835154375,0.00282,61663.0,61662.0,0.148379]
[1727835154998,0.00282,61663.0,61662.0,0.31803763]
[1727835157145,0.00282,61663.0,61662.0,0.40093763]
[1727835157688,0.00282,61663.0,61662.0,0.50093763]
[1727835162507,0.00282,61663.0,61662.0,0.231279]
[1727835162876,0.00282,61663.0,61662.0,0.148379]
[1727835163918,0.00282,61663.0,61662.0,0.31803763]
[1727835176148,0.00282,61663.0,61662.0,0.18829863]
[1727835176347,0.0163945,61663.0,61662.0,0.18829863]
[1727835176838,0.0163945,61663.0,61662.0,0.31803763]
[1727835177219,0.0163945,61663.0,61662.0,0.01864]
[1727835177996,0.0163945,61663.0,61662.0,0.148379]
[1727835178175,0.1461315,61663.0,61662.0,0.01864]
[1727835179194,0.1441315,61663.0,61662.0,0.00164]
[1727835179400,0.1451315,61663.0,61662.0,0.00164]
[1727835179626,0.1451315,61663.0,61662.0,0.00264]
[1727835180080,0.0173945,61663.0,61662.0,0.00164]
[1727835180323,0.1471315,61663.0,61662.0,0.00164]
[1727835180960,0.0173945,61663.0,61662.0,0.30103763]
[1727835181164,0.0173945,61663.0,61662.0,0.30428057]
[1727835181165,0.00382,61663.0,61662.0,0.30428057]
[1727835181379,0.00382,61663.0,61662.0,0.30103763]
[1727835181835,0.00382,61663.0,61662.0,0.30428058]
[1727835182043,0.02923624,61663.0,61662.0,0.30428058]
[1727835182242,0.02623624,61663.0,61662.0,0.30103763]
[1727835182667,0.00182,61663.0,61662.0,0.31203763]
[1727835182876,0.00082,61663.0,61662.0,0.30103763]
[1727835183448,0.00182,61663.0,61662.0,0.31503763]
[1727835183687,0.00282,61663.0,61662.0,0.32903763]
[1727835186442,0.02823614,61663.0,61662.0,0.32903763]
[1727835189674,0.00282,61663.0,61662.0,0.32903763]
[1727835192458,0.02823686,61663.0,61662.0,0.32903763]
[1727835193957,0.00282,61663.0,61662.0,0.32903763]
[1727835197666,0.132557,61663.0,61662.0,0.02964]
[1727835198080,0.14609993,61663.0,61662.0,0.02964]
[1727835198523,0.21712974,61663.0,61662.0,0.02964]
[1727835198769,0.21512974,61663.0,61662.0,0.00164]
[1727835198982,0.31262974,61663.0,61662.0,0.00364]
[1727835199435,0.31262974,61663.0,61662.0,0.00164]
[1727835199920,0.31462974,61663.0,61662.0,0.00164]
[1727835200143,0.3633103,61663.0,61662.0,0.00164]
[1727835200367,0.31462974,61663.0,61662.0,0.00164]
[1727835200807,0.7278011,61663.0,61662.0,0.00164]
[1727835201028,0.129754,61655.0,61654.0,0.00164]
[1727835201258,0.37573594,61655.0,61654.0,0.00164]
[1727835201697,0.38911443,61655.0,61654.0,0.00164]
[1727835202620,0.4145396,61655.0,61654.0,0.00164]
[1727835202842,0.39411443,61655.0,61654.0,0.00164]
[1727835203491,0.31771443,61655.0,61654.0,0.00164]
[1727835204225,0.31771443,61655.0,61654.0,0.213896]
[1727835204226,0.01837849,61655.0,61654.0,0.213896]
[1727835204437,0.01337849,61655.0,61654.0,0.37859045]
[1727835204656,0.00082,61663.0,61662.0,0.129739]
[1727835204899,0.00082,61663.0,61662.0,0.29939763]
[1727835205124,0.01848699,61663.0,61662.0,0.30264075]
[1727835205398,0.00082,61663.0,61662.0,0.29939763]
[1727835205808,0.00082,61663.0,61662.0,0.31039763]
[1727835205809,0.00182,61663.0,61662.0,0.31039763]
[1727835206033,0.00282,61663.0,61662.0,0.32239763]
[1727835206477,0.00282,61663.0,61662.0,0.40489763]
[1727835206916,0.00282,61663.0,61662.0,0.40653563]
[1727835207124,0.00182,61663.0,61662.0,0.39553563]
[1727835207541,0.00182,61663.0,61662.0,0.39653563]
[1727835207953,0.00282,61663.0,61662.0,0.41053563]
[1727835209544,0.00282,61663.0,61662.0,0.57523008]
[1727835209971,0.0282368,61663.0,61662.0,0.57523008]
[1727835210417,0.0272368,61663.0,61662.0,0.56223008]
[1727835210621,0.0262368,61663.0,61662.0,0.54823008]
[1727835210829,0.0282368,61663.0,61662.0,0.57623008]
[1727835211453,0.0282368,61663.0,61662.0,0.58152389]
[1727835211868,0.00282,61663.0,61662.0,0.58152389]
[1727835213268,0.00282,61663.0,61662.0,0.57623008]
[1727835214889,0.00270194,61663.0,61662.0,0.57623008]
[1727835216696,0.00270194,61663.0,61662.0,0.41153563]
[1727835219106,0.02811889,61663.0,61662.0,0.41153563]
[1727835222094,0.00270194,61663.0,61662.0,0.41153563]
[1727835224232,0.40518233,61693.0,61662.0,0.41153563]
[1727835224233,0.0912,61686.0,61683.0,0.129695]
[1727835224457,0.09861736,61695.0,61683.0,0.29935363]
[1727835224458,0.25930256,61684.0,61683.0,0.29935363]
[1727835224871,0.01512815,61684.0,61683.0,0.29935363]
[1727835225286,0.02541094,61684.0,61683.0,0.29935363]
[1727835225505,0.008,61684.0,61683.0,0.30035363]
[1727835226778,0.0912,61692.0,61689.0,0.129682]
[1727835227185,0.01594815,61690.0,61686.0,0.259378]
[1727835227389,0.01594815,61690.0,61688.0,0.129683]
[1727835227605,0.01594815,61690.0,61689.0,0.29934063]
[1727835228010,0.00082,61690.0,61689.0,0.29934063]
[1727835228214,0.00082,61690.0,61689.0,0.30034063]
[1727835228448,0.02622927,61690.0,61689.0,0.29934063]
[1727835229881,0.02622927,61690.0,61689.0,0.30734063]
[1727835230293,0.02622927,61690.0,61689.0,0.31634063]
[1727835230494,0.02622927,61690.0,61689.0,0.32134063]
[1727835230699,0.02622927,61690.0,61689.0,0.31234063]
[1727835231104,0.02622927,61690.0,61689.0,0.31734063]
[1727835231307,0.02622927,61690.0,61689.0,0.30434063]
[1727835231508,0.02622927,61690.0,61689.0,0.29934063]
[1727835231921,0.00082,61690.0,61689.0,0.30734063]
[1727835232133,0.00082,61690.0,61689.0,0.31434063]
[1727835232334,0.00082,61690.0,61689.0,0.144682]
[1727835232739,0.01614154,61690.0,61689.0,0.015]
[1727835232947,0.01614154,61690.0,61689.0,0.144682]
[1727835232948,0.00082,61690.0,61689.0,0.144682]
[1727835233144,0.01614154,61690.0,61689.0,0.144682]
[1727835234475,0.01614154,61690.0,61689.0,0.015]
[1727835234669,0.01614154,61690.0,61689.0,0.144682]
[1727835234896,0.01614154,61690.0,61689.0,0.015]
[1727835235231,0.04155157,61690.0,61689.0,0.015]
[1727835235624,0.04155157,61690.0,61689.0,0.144682]
[1727835236308,0.01614154,61690.0,61689.0,0.144682]
[1727835237628,0.00082,61690.0,61689.0,0.144682]
[1727835239029,0.00082,61690.0,61689.0,0.31434063]
[1727835239290,0.02622906,61690.0,61689.0,0.31434063]
[1727835241555,0.00082,61690.0,61689.0,0.31434063]
[1727835242843,0.01634832,61690.0,61689.0,0.31434063]
[1727835243047,0.00082,61690.0,61689.0,0.31434063]
[1727835244975,0.02622889,61690.0,61689.0,0.31434063]
[1727835246168,0.00082,61690.0,61689.0,0.31434063]
[1727835247424,0.00082,61690.0,61689.0,0.015]
[1727835247664,0.28918084,61690.0,61689.0,0.015]
[1727835247902,0.30470916,61690.0,61689.0,0.015]
[1727835249054,0.3301215,61690.0,61689.0,0.008]
[1727835249562,0.3301215,61690.0,61679.0,0.129702]
[1727835249563,0.129696,61683.0,61679.0,0.129702]
[1727835249800,0.1297,61681.0,61677.0,0.129707]
[1727835250030,0.145109,61682.0,61678.0,0.129704]
[1727835250277,0.02541309,61681.0,61678.0,0.129704]
[1727835250517,0.04080865,61681.0,61678.0,0.129704]
[1727835251010,0.129702,61680.0,61677.0,0.129707]
[1727835251301,0.129705,61678.0,61677.0,0.003]
[1727835252030,0.14510056,61678.0,61677.0,0.003]
[1727835252585,0.14510056,61678.0,61666.0,0.24945863]
[1727835252586,0.259441,61671.0,61668.0,0.24417441]
[1727835252864,0.129735,61664.0,61663.0,0.001638]
[1727835253122,0.1451107,61664.0,61663.0,0.001638]
[1727835254486,0.1461107,61664.0,61663.0,0.001638]
[1727835254941,0.17153349,61664.0,61663.0,0.001638]
[1727835255608,0.17153349,61664.0,61655.0,0.00164]
[1727835255609,0.59291063,61656.0,61655.0,0.00164]
[1727835255824,0.66433495,61656.0,61655.0,0.00164]
[1727835256037,0.66433495,61656.0,61650.0,0.24417441]
[1727835256038,0.252754,61655.0,61650.0,0.24417441]
[1727835256264,0.58762881,61655.0,61650.0,0.24417441]
[1727835256478,0.43280344,61655.0,61650.0,0.24417441]
[1727835256685,0.43280344,61655.0,61641.0,0.24417441]
[1727835257335,0.43380344,61655.0,61654.0,0.00364]
[1727835257577,0.43380344,61655.0,61654.0,0.00264]
[1727835258211,0.67797785,61655.0,61654.0,0.00264]
[1727835258420,1.05541499,61655.0,61654.0,0.00264]
[1727835258631,0.80854999,61655.0,61654.0,0.00264]
[1727835258879,0.81854999,61655.0,61654.0,0.00264]
[1727835259081,0.83797937,61655.0,61654.0,0.00264]
[1727835259491,0.85197937,61655.0,61654.0,0.00364]
[1727835259723,0.83297937,61655.0,61654.0,0.00164]
[1727835259928,0.76533037,61655.0,61654.0,0.00264]
[1727835260141,0.62182637,61655.0,61654.0,0.00364]
[1727835260348,0.71807137,61655.0,61654.0,0.00164]
[1727835260549,0.60282637,61655.0,61654.0,0.00164]
[1727835260752,0.62182637,61655.0,61654.0,0.00364]
[1727835261376,0.47723282,61655.0,61654.0,0.00364]
[1727835261932,0.45180344,61655.0,61654.0,0.00364]
[1727835265204,0.45180344,61655.0,61654.0,0.009502]
[1727835267308,0.42880344,61655.0,61654.0,0.009502]
[1727835267498,0.33560344,61655.0,61654.0,0.009502]
[1727835267916,0.39583311,61655.0,61654.0,0.009502]
[1727835268129,0.38183311,61655.0,61654.0,0.008502]
[1727835268346,0.40226078,61655.0,61654.0,0.007502]
[1727835268556,0.41226078,61655.0,61654.0,0.007502]
[1727835268753,0.42626078,61655.0,61654.0,0.008502]
[1727835269099,0.42626078,61655.0,61654.0,0.007502]
[1727835269100,0.41226078,61655.0,61654.0,0.007502]
[1727835269307,0.40226078,61655.0,61654.0,0.007502]
[1727835269518,0.41126078,61655.0,61654.0,0.008502]
[1727835269729,0.42226078,61655.0,61654.0,0.008502]
[1727835270145,0.4392194,61655.0,61654.0,0.008502]
[1727835270409,0.37898973,61655.0,61654.0,0.008502]
[1727835271594,0.36998973,61655.0,61654.0,0.007502]
[1727835271832,0.34456206,61655.0,61654.0,0.007502]
[1727835272069,0.34256206,61655.0,61654.0,0.008502]
[1727835272320,0.24656206,61655.0,61654.0,0.008502]
[1727835272556,0.23756206,61655.0,61654.0,0.007502]
[1727835272794,0.24056206,61655.0,61654.0,0.007502]
[1727835273769,0.16854588,61655.0,61654.0,0.086602]
[1727835274253,0.03879188,61655.0,61654.0,0.086602]
[1727835274495,0.16554588,61655.0,61654.0,0.086602]
[1727835274739,0.03179188,61655.0,61654.0,0.086602]
[1727835275041,0.16654588,61655.0,61654.0,0.086602]
[1727835275293,0.33260761,61655.0,61654.0,0.007502]
[1727835275537,0.26405312,61655.0,61654.0,0.007502]
[1727835280002,0.28705312,61655.0,61654.0,0.007502]
[1727835280960,0.28505312,61655.0,61654.0,0.007502]
[1727835281384,0.29205312,61655.0,61654.0,0.008502]
[1727835281743,0.4357933,61655.0,61654.0,0.007502]
[1727835282001,0.408368,61655.0,61654.0,0.008502]
[1727835282216,0.420368,61655.0,61654.0,0.008502]
[1727835282411,0.27862782,61655.0,61654.0,0.008502]
[1727835285334,0.30405489,61655.0,61654.0,0.008502]
[1727835289772,0.28105489,61655.0,61654.0,0.008502]
[1727835290838,0.28187489,61655.0,61654.0,0.008502]
[1727835291868,0.25644782,61655.0,61654.0,0.008502]
[1727835293346,0.24644782,61655.0,61654.0,0.007502]
[1727835293772,0.24444782,61655.0,61654.0,0.008502]
[1727835294001,0.25544782,61655.0,61654.0,0.008502]
[1727835294221,0.23444782,61655.0,61654.0,0.007502]
[1727835294426,0.23644782,61655.0,61654.0,0.007502]
[1727835294626,0.23944782,61655.0,61654.0,0.007502]
[1727835295258,0.26487377,61655.0,61654.0,0.007502]
[1727835296791,0.04607921,61655.0,61654.0,0.309858]
[1727835297063,0.04607921,61655.0,61654.0,0.31310145]
[1727835297276,0.03124595,61655.0,61654.0,0.31310145]
[1727835297494,0.02924595,61655.0,61654.0,0.31835436]
[1727835297712,0.02924595,61655.0,61654.0,0.31511091]
[1727835297932,0.02724595,61655.0,61654.0,0.319858]
[1727835298581,0.02824595,61655.0,61654.0,0.48655245]
[1727835299197,0.02724595,61655.0,61654.0,0.47655245]
[1727835299415,0.02824595,61655.0,61654.0,0.48955245]
[1727835299888,0.02624595,61655.0,61654.0,0.47455245]
[1727835300115,0.02724595,61655.0,61654.0,0.47555245]
[1727835300354,0.02724595,61655.0,61654.0,0.48755245]
[1727835300611,0.02724595,61655.0,61654.0,0.58855245]
[1727835300865,0.02824595,61655.0,61654.0,0.63691095]
[1727835301100,0.02824595,61655.0,61654.0,0.58855245]
[1727835301582,0.02724595,61655.0,61654.0,0.58755245]
[1727835301814,0.02824595,61655.0,61654.0,0.58855245]
[1727835302051,0.00282,61655.0,61654.0,0.58855245]
[1727835302498,0.00182,61655.0,61654.0,0.57555245]
[1727835302702,0.00282,61655.0,61654.0,0.423858]
[1727835303115,0.00082,61655.0,61654.0,0.409858]
[1727835303319,0.00182,61655.0,61654.0,0.410858]
[1727835303529,0.00182,61655.0,61654.0,0.423858]
[1727835303530,0.00282,61655.0,61654.0,0.423858]
[1727835303736,0.00182,61655.0,61654.0,0.422858]
[1727835303941,0.00182,61655.0,61654.0,0.410858]
[1727835304163,0.00082,61655.0,61654.0,0.409858]
[1727835304387,0.00082,61655.0,61654.0,0.422858]
[1727835304388,0.00182,61655.0,61654.0,0.422858]
[1727835304637,0.00282,61655.0,61654.0,0.423858]
[1727835305261,0.00282,61655.0,61654.0,0.58855245]
[1727835305489,0.00082,61655.0,61654.0,0.57455245]
[1727835305869,0.00182,61655.0,61654.0,0.58755245]
[1727835306297,0.00082,61655.0,61654.0,0.57455245]
[1727835306625,0.00082,61655.0,61654.0,0.58755245]
[1727835306626,0.00182,61655.0,61654.0,0.58755245]
[1727835306836,0.00282,61655.0,61654.0,0.58855245]
[1727835307035,0.00282,61655.0,61654.0,0.57455245]
[1727835307036,0.00182,61655.0,61654.0,0.57455245]
[1727835307249,0.00082,61664.0,61663.0,0.302337]
[1727835307472,0.01344535,61664.0,61663.0,0.47523853]
[1727835307668,0.00082,61664.0,61663.0,0.63669008]
[1727835308429,0.02623686,61664.0,61663.0,0.63669008]
[1727835308653,0.02723686,61664.0,61663.0,0.63769008]
[1727835309508,0.02723686,61664.0,61663.0,0.64869008]
[1727835309509,0.02823686,61664.0,61663.0,0.64869008]
[1727835309721,0.02823686,61664.0,61663.0,0.48399563]
[1727835309957,0.02623686,61664.0,61663.0,0.209737]
[1727835310194,0.02723686,61664.0,61663.0,0.002]
[1727835310396,0.04095779,61664.0,61663.0,0.011]
[1727835310631,0.17069279,61664.0,61663.0,0.011]
[1727835310850,0.17169279,61664.0,61663.0,0.014]
[1727835311061,0.129738,61663.0,61659.0,0.229744]
[1727835311271,0.129738,61663.0,61657.0,0.08]
[1727835311272,0.129743,61660.0,61657.0,0.08]
[1727835311479,0.129754,61655.0,61654.0,0.007502]
[1727835311721,0.2595,61657.0,61654.0,0.007502]
[1727835311957,0.01266808,61656.0,61655.0,0.129754]
[1727835312449,0.129737,61663.0,61657.0,0.259498]
[1727835312655,0.130555,61664.0,61663.0,0.005]
[1727835313074,0.01444957,61664.0,61663.0,0.17465863]
[1727835313319,0.01444957,61664.0,61663.0,0.16965863]
[1727835313320,0.01344957,61664.0,61663.0,0.16965863]
[1727835313546,0.01344957,61664.0,61659.0,0.16965863]
[1727835313547,0.004,61663.0,61659.0,0.16965863]
[1727835313768,0.004,61663.0,61660.0,0.129743]
[1727835313970,0.01263025,61662.0,61660.0,0.129743]
[1727835314184,0.01263025,61662.0,61661.0,0.129741]
[1727835314387,0.00082,61664.0,61663.0,0.001]
[1727835314590,0.00082,61664.0,61663.0,0.30363871]
[1727835314800,0.00082,61664.0,61663.0,0.30263871]
[1727835315220,0.01348819,61664.0,61663.0,0.29939563]
[1727835315423,0.00082,61664.0,61663.0,0.29939563]
[1727835315631,0.01348819,61664.0,61663.0,0.30263871]
[1727835315863,0.00082,61664.0,61663.0,0.30263871]
[1727835316064,0.00082,61664.0,61663.0,0.46733316]
[1727835316276,0.00082,61664.0,61663.0,0.29939563]
[1727835316688,0.01454071,61664.0,61663.0,0.31039563]
[1727835317096,0.01454071,61664.0,61663.0,0.30139563]
[1727835317312,0.01454071,61664.0,61663.0,0.31139563]
[1727835317517,0.01454071,61664.0,61663.0,0.30939563]
[1727835317761,0.01554071,61664.0,61663.0,0.31139563]
[1727835318384,0.04095801,61664.0,61663.0,0.31139563]
[1727835318586,0.03995801,61664.0,61663.0,0.30139563]
[1727835318790,0.03995801,61664.0,61663.0,0.31239563]
[1727835318995,0.04095801,61664.0,61663.0,0.31239563]
[1727835319457,0.03995801,61664.0,61663.0,0.30139563]
[1727835319721,0.03995801,61664.0,61663.0,0.31239563]
[1727835320185,0.04095801,61664.0,61663.0,0.31439563]
[1727835320423,0.04095801,61664.0,61663.0,0.31763859]
[1727835320675,0.04095801,61664.0,61663.0,0.31439563]
[1727835321178,0.04095801,61664.0,61663.0,0.31763861]
[1727835321421,0.04095801,61664.0,61663.0,0.31439563]
[1727835321861,0.01554071,61664.0,61663.0,0.31439563]
[1727835329647,0.02823708,61664.0,61663.0,0.31439563]
[1727835332042,0.00282,61664.0,61663.0,0.31439563]
[1727835334325,0.00282,61664.0,61663.0,0.144737]
[1727835334547,0.00282,61664.0,61663.0,0.015]
[1727835334548,0.14542651,61664.0,61663.0,0.015]
[1727835334759,0.01569151,61664.0,61663.0,0.015]
[1727835334969,0.01569151,61664.0,61663.0,0.144737]
[1727835335387,0.00182,61664.0,61663.0,0.131737]
[1727835335828,0.00082,61664.0,61663.0,0.129737]
[1727835336038,0.01367853,61664.0,61663.0,0.215037]
[1727835336271,0.00182,61664.0,61663.0,0.217037]
[1727835336503,0.00082,61664.0,61663.0,0.215037]
[1727835336710,0.00082,61664.0,61663.0,0.217037]
[1727835337333,0.00082,61664.0,61663.0,0.213037]
[1727835337544,0.00082,61664.0,61663.0,0.21427986]
[1727835337750,0.00082,61664.0,61663.0,0.37573145]
[1727835338187,0.00182,61664.0,61663.0,0.48773145]
[1727835338836,0.00182,61664.0,61663.0,0.47573145]
[1727835338837,0.00082,61664.0,61663.0,0.47573145]
[1727835339044,0.00182,61664.0,61663.0,0.47773145]
[1727835339252,0.02723611,61664.0,61663.0,0.47773145]
[1727835339897,0.02623611,61664.0,61663.0,0.47573145]
[1727835340358,0.005,61673.0,61672.0,0.48067663]
[1727835340585,0.005,61673.0,61672.0,0.77527236]
[1727835340855,0.24417441,61681.0,61672.0,0.77527236]
[1727835340856,0.24417441,61681.0,61680.0,0.316001]
[1727835341082,0.24417441,61681.0,61680.0,0.48069545]
[1727835341300,0.24417441,61689.0,61688.0,0.129684]
[1727835341516,0.24417441,61689.0,61688.0,0.29934263]
[1727835341725,0.02623142,61690.0,61689.0,0.129682]
[1727835343493,0.02623142,61690.0,61689.0,0.134682]
[1727835344560,0.02623142,61690.0,61689.0,0.14392368]
[1727835344561,0.02723142,61690.0,61689.0,0.14392368]
[1727835344988,0.00182,61690.0,61689.0,0.14392368]
[1727835346065,0.00182,61690.0,61689.0,0.40861813]
[1727835346276,0.00182,61690.0,61689.0,0.40537645]
[1727835348316,0.00182,61690.0,61689.0,0.48487645]
[1727835350670,0.02722542,61690.0,61689.0,0.40537645]
[1727835351321,0.00182,61690.0,61689.0,0.40537645]
[1727835352645,0.00182,61690.0,61689.0,0.140682]
[1727835354348,0.02722688,61690.0,61689.0,0.140682]
[1727835354748,0.00182,61690.0,61689.0,0.140682]
[1727835357937,0.02722725,61690.0,61689.0,0.140682]
[1727835362100,0.00182,61690.0,61689.0,0.140682]
[1727835362331,0.00182,61690.0,61689.0,0.011]
[1727835362725,0.01526494,61690.0,61689.0,0.011]
[1727835363451,0.14494494,61690.0,61689.0,0.011]
[1727835363656,0.23644494,61690.0,61689.0,0.011]
[1727835364467,0.23544494,61690.0,61689.0,0.005]
[1727835364710,0.36512694,61690.0,61684.0,0.129691]
[1727835364891,0.129685,61688.0,61684.0,0.129691]
[1727835365297,0.01333853,61687.0,61684.0,0.129691]
[1727835365508,0.01333853,61687.0,61672.0,0.03251]
[1727835365509,0.01333853,61687.0,61676.0,0.16965863]
[1727835365731,0.259378,61686.0,61681.0,0.129698]
[1727835365933,0.129692,61685.0,61681.0,0.129698]
[1727835366143,0.129692,61685.0,61676.0,0.16965863]
[1727835366144,0.01333705,61685.0,61676.0,0.16965863]
[1727835366400,0.01333705,61685.0,61673.0,0.477738]
[1727835366609,0.129702,61680.0,61676.0,0.37388241]
[1727835367051,0.129704,61679.0,61676.0,0.129708]
[1727835367264,0.129704,61679.0,61673.0,0.001638]
[1727835367265,0.129705,61678.0,61673.0,0.001638]
[1727835367471,0.129708,61677.0,61673.0,0.131354]
[1727835367676,0.1048284,61679.0,61673.0,0.001638]